Cogmind - Beta 13 @@@ ROGUE MODE // 2024.03.31 @ 23:10:46 Player: CrimsonOccultist Result: Destroyed by S-10 Pest with Light Assault Rifle Performance ------------- Evolutions (0) 0 Regions Visited (2) 400 Robots Destroyed (33) 165 Value Destroyed (913) 913 Prototype IDs (2) 40 Alien Tech Used (0) 0 Bonus (0) 0 TOTAL SCORE: 1518 Bonus ------- None Cogmind --------- Core Integrity 0/250 Matter 275/300 Energy 160/160 System Corruption 0% Temperature Cool (0) Movement Treading (160) Location -10/Mines Parts ------- > --- POWER (1) -------- Light Nuclear Core > --- PROPULSION (2) --- Light Treads Light Treads > --- UTILITY (2) ------ Signal Interpreter Targeting Computer > --- WEAPON (2) ------- Heavy Assault Rifle Heavy Assault Rifle > --- INVENTORY (5) ---- Light Treads Terrain Scanner Heavy Assault Rifle Heavy Assault Rifle Grenade Launcher Peak State ------------ > --- POWER ------------ Light Nuclear Core > --- PROPULSION ------- Light Treads Light Treads > --- UTILITY ---------- Signal Interpreter Targeting Computer > --- WEAPON ----------- Heavy Assault Rifle Heavy Assault Rifle > --- INVENTORY -------- Light Treads Terrain Scanner Heavy Assault Rifle Heavy Assault Rifle Grenade Launcher [Rating: 11] Favorites ----------- Power Ion Engine Engine Ion Engine Power Core Light Nuclear Core Propulsion Light Treads Treads Light Treads Utility Signal Interpreter Device Terrain Scanner Storage Medium Storage Unit Processor Signal Interpreter Weapon Heavy Assault Rifle Energy Gun EM Pulse Gun Ballistic Gun Heavy Assault Rifle Build | -11 -10 -10 ------- Run | Yrd Mat Min Slots Evolved . | . . . Power . | . . . Propulsion . | . . . Utility . | . . . Weapon . | . . . Parts Attached 20 | 5 10 5 Power 4 | 1 1 2 Engine 3 | 1 1 1 Core 1 | . . 1 Reactor . | . . . Propulsion 6 | 2 2 2 Treads 6 | 2 2 2 Leg . | . . . Wheel . | . . . Hover . | . . . Flight . | . . . Utility 4 | . 3 1 Device 1 | . 1 . Storage 1 | . 1 . Processor 2 | . 1 1 Hackware . | . . . Protection . | . . . Artifact . | . . . Weapon 6 | 2 4 . Energy Gun 1 | 1 . . Energy Cannon . | . . . Ballistic Gun 5 | 1 4 . Ballistic Cannon . | . . . Launcher . | . . . Special Weapon . | . . . Impact Weapon . | . . . Slashing Weapon . | . . . Piercing Weapon . | . . . Special Melee Weapon . | . . . Unidentified Prototypes . | . . . Parts Lost 4 | . 4 . Power . | . . . Propulsion 2 | . 2 . Utility . | . . . Weapon 2 | . 2 . Highest Loss Streak 1 | . 1 . To Critical Strikes . | . . . Average Slot Usage (%) 86 | . 82 100 Engine 12 | . 14 5 Core 1 | . . 8 Treads 25 | . 24 28 Device 6 | . 7 2 Storage 3 | . 3 . Processor 9 | . 4 25 Energy Gun 2 | . 2 . Ballistic Gun 24 | . 23 28 Naked Turns . | . . . Heaviest Build 19 | 9 19 12 Greatest Support 40 | 40 40 40 Greatest Overweight (x) . | . . . Average Overweight (x) . | . . . Largest Inventory Capacity 10 | 5 10 5 Average Capacity 6 | 5 6 5 Most Carried 5 | 1 5 5 Average Carried 2 | . 2 4 Final Capacity 5 | 5 5 5 Final Carried 5 | . 5 5 Class Distribution -------------------- 79% | Mutant 20% | Scavenger-Mutant Dominant Class ---------------- Mutant | -10/Materials Scavenger-Mutant | -10/Mines Resources | -11 -10 -10 ----------- Run | Yrd Mat Min Matter Collected 770 | 250 357 163 Remotely . | . . . Salvage Created 1141 | . 782 359 Parts 82 | . 59 23 Haulers Intercepted 1 | . 1 . Recyclers Shooed . | . . . Parts Field Recycled . | . . . Retrieved Matter . | . . . Parts Self-Destructed . | . . . Prevented . | . . . Kills | -11 -10 -10 ------- Run | Yrd Mat Min Combat Hostiles Destroyed 27 | . 19 8 Guns 27 | . 19 8 Classes Destroyed 7 | . 6 1 Worker 1 | . 1 . Builder 2 | . 2 . Hauler 1 | . 1 . Watcher 2 | . 2 . Swarmer 6 | . 6 . Grunt 19 | . 13 6 Sentry 2 | . . 2 Best Kill Streak 4 | . 4 3 Combat Bots Only 4 | . 4 3 Max Kills in Single Turn 2 | . 2 2 Gunslinging 1 | . . 1 Exploded . | . . . Melee . | . . . Uniques/NPCs Destroyed . | . . . Combat | -11 -10 -10 -------- Run | Yrd Mat Min Hostile Shots Fired 135 | . 90 45 Missed 31 | . 17 14 Damage Taken 1299 | . 908 391 Core 255 | . 156 99 Absorbed by Shields . | . . . Regen/Repaired (Parts) 33 | . 33 . Core Remaining (%) 100 | 100 . . Volleys Fired 96 | . 73 23 Largest 2 | . 2 2 Hottest 60 | . 60 46 Shots Fired 180 | . 134 46 Gun 180 | . 134 46 Cannon . | . . . Launcher . | . . . Special . | . . . Kinetic 161 | . 115 46 Thermal . | . . . Explosive . | . . . Electromagnetic 19 | . 19 . Robot Hit Streak 20 | . 11 20 Robot Miss Streak 6 | . 6 2 Penetration Max . | . . . Secondary Targets 1 | . . 1 Max Gunslinging Chain 1 | . . 1 Shots Hit Robots 125 | . 85 40 Core Hits 58 | . 44 14 Critical Kills . | . . . Critical Parts Destroyed 2 | . 1 1 Critical Strikes 2 | . 1 1 Destroy 2 | . 1 1 Melee Attacks . | . . . Impact . | . . . Slashing . | . . . Piercing . | . . . Sneak Attacks . | . . . Combat Hostiles . | . . . Follow-up Attacks . | . . . Damage Inflicted 1832 | . 1226 606 Guns 1721 | . 1116 605 Cannons . | . . . Explosions 94 | . 94 . Melee . | . . . Ramming 17 | . 16 1 Kinetic 1514 | . 909 605 Thermal 94 | . 94 . Explosive . | . . . Electromagnetic 207 | . 207 . Impact . | . . . Slashing . | . . . Piercing . | . . . Highest Corruption . | . . . Average Corruption . | . . . Corruption Purged . | . . . Corruption Blocked . | . . . Overload Shots . | . . . Overflow Damage 6 | . 6 . Projectiles . | . . . Explosions 6 | . 6 . Melee . | . . . Knockbacks . | . . . Impact . | . . . Kinetic . | . . . Secondary . | . . . Self-Inflicted Damage 76 | . 76 . Shots 2 | . 2 . Rammed 7 | . 6 1 Targets Rammed 7 | . 6 1 Kicked . | . . . Crushed . | . . . Highest Temperature 45 | . 45 33 Average Temperature 17 | . 19 9 Received Heat Transfer 471 | . 318 153 Siege Activations . | . . . Robots Corrupted . | . . . Combat Hostiles . | . . . Parts Fried . | . . . Impact Corruptions . | . . . Robots Melted . | . . . Combat Hostiles . | . . . Parts Melted 1 | . 1 . Heat Transferred 150 | . 150 . Parts Sabotaged . | . . . Parts Stolen . | . . . Parts Stripped . | . . . Power Chain Reactions 2 | . 2 . Alert | -11 -10 -10 ------- Run | Yrd Mat Min Peak Influence 311 | . 298 311 Initial 90 | . . 90 Average 132 | . 120 194 Maximum Alert Level 1 | . 1 1 Low Security (%) 77 | 100 76 77 Level 1 22 | . 23 22 Level 2 . | . . . Level 3 . | . . . Level 4 . | . . . Level 5 . | . . . High Security . | . . . Max Security . | . . . Squads Dispatched 7 | . 7 . Investigation 4 | . 4 . Extermination . | . . . Reinforcement 3 | . 3 . Assault . | . . . Garrison . | . . . Intercept . | . . . Searches Triggered . | . . . Construction Impeded . | . . . Haulers Reinforced . | . . . Active Scanning Responses . | . . . Cargo Convoy Interrupts . | . . . Stealth | -11 -10 -10 --------- Run | Yrd Mat Min Distress Signals . | . . . Communications Jammed . | . . . Distress Signals . | . . . Times Spotted 44 | . 32 12 Peak Tracking Total 4 | . 4 3 Tactical Retreats 3 | . 2 1 Traps | -11 -10 -10 ------- Run | Yrd Mat Min Traps Triggered 4 | . 4 . Indirectly . | . . . Trap Hack Attempts . | . . . Triggered . | . . . Disarmed . | . . . Reprogrammed . | . . . Reused . | . . . Traps Extracted . | . . . Installed . | . . . Triggered . | . . . Machines | -11 -10 -10 ---------- Run | Yrd Mat Min Machines Disabled 2 | . 2 . Max in Single Turn 1 | . 1 . Machines Repaired . | . . . Machines Dismantled . | . . . Machines Sabotaged . | . . . Overloaded Fab Kills . | . . . Hacking | -11 -10 -10 --------- Run | Yrd Mat Min Machines Accessed 6 | . 6 . Terminals 4 | . 4 . Fabricators . | . . . Repair Stations 1 | . 1 . Recycling Units 1 | . 1 . Scanalyzers . | . . . Garrison Access . | . . . Total Hacks 17 | . 17 . Successful 10 | . 10 . Failed 7 | . 7 . Catastrophic . | . . . Database Lockouts . | . . . Manual . | . . . Terminals 13 | . 13 . Fabricators . | . . . Repair Stations 3 | . 3 . Recycling Units 1 | . 1 . Scanalyzers . | . . . Garrison Access . | . . . Terminal Hacks 7 | . 7 . Prototype ID Bank 1 | . 1 . Terminal Index 1 | . 1 . Alert Level 1 | . 1 . Dispatch Records 1 | . 1 . Patrol Status 1 | . 1 . Hauler Manifests 2 | . 2 . Fabricator Hacks . | . . . Repair Station Hacks 2 | . 2 . Scan Component 1 | . 1 . Repair 1 | . 1 . Recycling Unit Hacks 1 | . 1 . Retrieve Components 1 | . 1 . Scanalyzer . | . . . Garrison Access Hacks . | . . . Unauthorized Hacks . | . . . Terminals . | . . . Fabricators . | . . . Repair Stations . | . . . Recycling Units . | . . . Scanalyzers . | . . . Garrison Access . | . . . Data Cores Recovered . | . . . Used . | . . . Hacking Detections 5 | . 5 . Full Trace Events 2 | . 2 . Feedback Events . | . . . Feedback Blocked . | . . . Robot Schematics Acquired . | . . . Robots Built . | . . . Authchips . | . . . Time . | . . . Total Robot Build Rating . | . . . Part Schematics Acquired . | . . . Parts Built . | . . . Authchips . | . . . Time . | . . . Total Part Build Rating . | . . . Parts Repaired 1 | . 1 . Time 32 | . 32 . Parts Recycled . | . . . Recycled Matter . | . . . Retrieved Matter . | . . . Retrieved Components 9 | . 9 . Parts Scanalyzed . | . . . Part Schematics Acquired . | . . . Parts Damaged . | . . . Bothacking | -11 -10 -10 ------------ Run | Yrd Mat Min Used RIF Installer . | . . . Robots Hacked . | . . . Non-combat . | . . . Combat . | . . . Robot Hacks Applied . | . . . Relay Couplers Released . | . . . Fabnet Peak Effective % . | . . . Robots Rewired . | . . . Allies Hacked . | . . . Hacks Repelled . | . . . Allies | -11 -10 -10 -------- Run | Yrd Mat Min Total Allies . | . . . Largest Group . | . . . Highest-Rated Group . | . . . Highest-Rated Ally . | . . . Total Orders . | . . . Ally Attacks . | . . . Total Damage . | . . . Kills . | . . . Allies Corrupted . | . . . Allies Melted . | . . . Intel | -11 -10 -10 ------- Run | Yrd Mat Min Robot Analysis Total . | . . . Derelict Logs Recovered . | . . . Drone Launches . | . . . Drone Recoveries . | . . . Exploration | -11 -10 -10 ------------- Run | Yrd Mat Min Turns Passed 1737 | 64 1286 387 Spaces Moved 777 | 39 566 172 Core 6 | 6 . . Treads 771 | 33 566 172 Legs . | . . . Wheels . | . . . Hover . | . . . Flight . | . . . Fastest Speed 50 | 50 160 160 Average Speed 159 | 143 160 160 Slowest Speed 160 | 160 160 160 Overloaded Moves . | . . . Propulsion Burnouts . | . . . Robots Hopped . | . . . Cave-ins Triggered . | . . . Exploration Rate (%) 36 | 4 68 38 Regions Visited 2 Branch Regions 1 Pre-discovered Areas . | . . . Known Exits Taken 1 | . 1 . Unknown Exits Taken 1 | 1 . . Scrap Searched 1 | . . 1 Spaces Dug . | . . . Terrain Destroyed 9 | . 9 . Melee . | . . . Projectile . | . . . AOE 9 | . 9 . Terrain Rammed . | . . . Walls Destroyed . | . . . Machines Disabled . | . . . Actions | -11 -10 -10 --------- Run | Yrd Mat Min Total 1098 | 45 814 239 Wait 180 | 1 146 33 Move 775 | 38 565 172 Hop . | . . . Pick Up 12 | 1 10 1 Fast Attach 10 | 4 5 1 Attach 5 | 1 4 . Detach 1 | . 1 . Swap 5 | . 1 4 Drop 7 | . 3 4 Fire 96 | . 73 23 Melee . | . . . Ram . | . . . Kick . | . . . Crush 7 | . 6 1 Escape Stasis . | . . . Rewire . | . . . Trap . | . . . Miscellaneous . | . . . Route ------- -11/Scrapyard -10/Materials (discovered 3 exits: *Mat x2 / *Min) -10/Mines (discovered 1 exit: *Mat) History --------- Turn | Location | Event 11 | -11/Scrapyard | Discovered new exit (range 15) 65 | -11/Scrapyard | Entered Materials 304 | -10/Materials | Build established: Mutant 470 | -10/Materials | Discovered new exit (range 10) 797 | -10/Materials | Core integrity fell below 50% 919 | -10/Materials | Discovered new exit (range 13) 941 | -10/Materials | Identified exit to Mines 1114 | -10/Materials | Repaired Hvy. Assault Rifle 1223 | -10/Materials | Discovered new exit (range 6) 1259 | -10/Materials | Identified exit to Materials 1351 | -10/Materials | Entered Mines 1373 | -10/Mines | Core integrity fell below 20% 1555 | -10/Mines | Discovered exit to Materials (range 9) 1682 | -10/Mines | Build established: Scavenger-Mutant 1738 | -10/Mines | Destroyed by S-10 Pest with Light Assault Rifle Last Messages --------------- 01512_ K-01 Serf collects debris. 01517_ Slammed into K-01 Serf. 01517_ K-01 Serf collects debris. 01555_ EXIT=FOUND: MATERIALS 01557_ K-01 Serf collects debris. 01643_ R-06 Scavenger collects Ion Engine. 01647_ K-01 Serf collects debris. 01649_ Critical hit (Burn: +37). 01651_ G-47 Trooper destroyed. 01652_ K-01 Serf collects debris. 01655_ K-01 Serf destroyed. 01656_ K-01 Serf collects debris. 01673_ G-47 Trooper destroyed. 01679_ G-34 Mercenary suffers critical hit (Destroy). 01679_ Destroyed Sml. Laser. 01685_ G-34 Mercenary destroyed. 01697_ Acquired 40 matter. 01699_ Acquired 19 matter. 01716_ K-01 Serf collects debris. Map ----- +----------------------------------------------------+ | ??????????????????????????????????????????????? | | ??????????????????????????????????????????????? | | ??????????????????????????????????????????????? | | ??????????????????????????????????????????????? | | ??????????????????????????????????????????????? | | ??????????????????????????????????????????????? | | ??????????????????????????????????????????????? | | ??????????????????????????????????????????????? | | ??????????????????????????????????????????????? | | ??????????????????????????????????????????????? | | ?????????????????????????????????????#####????? | | ?????????????????????????????????????? ????? | | ?????????????????????????????????????? ????? | | ????????????????????##???????????????? ????? | | ????????????????????# ???????????????? ????? | | ????????????????????# ?????????###????? ????? | | ????????????????????# ?????????# ????? ????? | | ????????????????????# ?????????# #????? ????# | | ???????????????????## ####?????# #?????# #???## | | ??????????????????## #####?# #?????# #??## | | ??????????????????# ### #?????#!#??# | | ???????????????????# ## #######%#### | | ???????????????????### # *=== | | ?????????????????????# #### =%!![* | | ?????????????????????# #??############### ### | | ?????????????????????#@ #????????????????# #?## | | ???????????????????? s #????????????????# #??# | | ?????????????????? s #???????????????# #??? | | ????????????????" s #??????????????# #??? | | ??????????????""" #??????????????# #??? | | ??????????????""" ##??????????????# #??? | | ?????????????? ####???????????????# #??# | | ????????????? ### ???????????????????# #### | | ???????????? #??# ???????????????????# | | ???????????? ##???# ???????????????????##### | | ???????????# #?????# ???????????????????????# | | ???????????# ??????# ???????????????????????# | | ????????????????????# ???????????????????????# | | ????????????????????? ???????????????????????## | | ??????????????????????????????????????????????# | | ??????????????????????????????????????????????# | | ??????????????????????????????????????????????# | | ??????????????????????????????????????????????# | | ??????????????????????????????????????????????? | | ??????????????????????????????????????????????? | | ??????????????????????????????????????????????? | | | | | | | | | +----------------------------------------------------+ Best States ------------- Heat Dissipation 25 Energy Generation 14 Energy Capacity 250 Matter Stores 300 Matter Capacity 300 Sight Range 16 Terrain Scan Range 14 Terrain Scan Density 10 Evasion (%) 40 Targeting Accuracy 5 Recoil Reduction 2 Item Schematics ----------------- None Robot Schematics ------------------ None Fabricated ------------ Nothing Alien Tech Used ----------------- None Achievements -------------- None Challenges ------------ None Game ------ Seed EtherialMetaSegregator Manual? 0 Play Time 00:15:23 Cumulative 6.7 hours Start 2024.03.31 @ 22:58:04 End 2024.03.31 @ 23:10:46 Sessions 1 Manual Loads 0 Difficulty Rogue Special Mode None Game No. 8 Rogue 8 Adventurer 0 Explorer 0 Win Type - Total 0 Types 0/0/0/0/0/0/0/0/0 Lore% 5 Gallery% 9 Achievement% 13 Wizard Run 0 Options --------- Layout 2 ASCII 0 Keyboard 1 Movement Numpad Keybinds 0 Fullscreen 1 Font 24/Smallcaps Map View 50x44 Zoom Use 0% Tactical HUD 1 Map Filters NONE Filters NONE Steam 1 RUN: 3c5aa604-e976-4dc3-8064-12761321a4bc